fUST/lending_fUST_20250820
["ID","MTS","AMOUNT","RATE_DAILY","PERIOD"]
[380290070,1755637840606,-3000.0,0.0002103,2]
[380290072,1755637840615,-3000.0,0.0002104,2]
[380290074,1755637840624,-3000.0,0.0002105,2]
[380290076,1755637840633,-3000.0,0.0002106,2]
[380290078,1755637840642,-3000.0,0.0002107,2]
[380290080,1755637840651,-3000.0,0.0002108,2]
[380290082,1755637840660,-3000.0,0.0002109,2]
[380290083,1755637840669,-3000.0,0.000211,2]
[380290084,1755637840678,-3000.0,0.0002111,2]
[380290085,1755637840687,-480.0,0.00021115,2]
[380290086,1755637840696,-3000.0,0.0002112,2]
[380290087,1755637840705,-3000.0,0.0002113,2]
[380290088,1755637840714,-4467.72044171,0.00021138,2]
[380290089,1755637840723,-3000.0,0.0002114,2]
[380290090,1755637840732,-3000.0,0.0002115,2]
[380290091,1755637840741,-3000.0,0.0002116,2]
[380290092,1755637840750,-172.50297172,0.00021167,2]
[380290093,1755637840759,-669.02,0.00021167,2]
[380290094,1755637840768,-685.09,0.00021167,2]
[380290095,1755637840777,-480.0,0.00021167,2]
[380290096,1755637840786,-580.58,0.00021168,2]
[380290097,1755637840797,-3000.0,0.0002117,2]
[380290098,1755637840806,-1680.0,0.00021174,2]
[380290099,1755637840817,-3000.0,0.0002118,2]
[380290100,1755637840826,-3000.0,0.0002119,2]
[380290101,1755637840835,-3000.0,0.000212,2]
[380290102,1755637840843,-151.0,0.000212,3]
[380290103,1755637840852,-3973.639962,0.0002121,2]
[380290104,1755637840865,-420.0,0.00021213,2]
[380290105,1755637840875,-767.29054172,0.00021216,2]
[380290106,1755637840884,-164.47246683,0.0002126,2]
[380290107,1755637840895,-260.0,0.00021348,2]
[380290108,1755637840904,-184.92508115,0.00021389,2]
[380290109,1755637840913,-669.02,0.00021441,2]
[380290110,1755637840922,-685.09,0.00021441,2]
[380290111,1755637840930,-480.0,0.00021441,2]
[380290112,1755637840939,-580.58,0.00021442,2]
[380290113,1755637840948,-4467.72044171,0.00021551,2]
[380290114,1755637840958,-1977.01568987,0.00021574,2]
[380290115,1755637840967,-151.0,0.000217,3]
[380290116,1755637840977,-669.02,0.00021715,2]
[380290118,1755637840986,-685.09,0.00021715,2]
[380290120,1755637840995,-480.0,0.00021715,2]
[380290122,1755637841004,-580.58,0.00021716,2]
[380290124,1755637841014,-360.0,0.00021896,2]
[380290126,1755637841023,-720.0,0.00021907,20]
[380290128,1755637841031,-4467.72044171,0.00021963,2]
[380290130,1755637841041,-466.72268674,0.00021973,2]
[380290132,1755637841050,-500.0,0.00021973,2]
[380290134,1755637841060,-500.0,0.00021973,2]
[380290135,1755637841070,-158.24676268,0.00021973,2]
[380290138,1755637841079,-500.0,0.00021973,2]
[380290139,1755637841088,-500.0,0.00021973,2]
[380290142,1755637841098,-500.0,0.00021973,2]
[380290143,1755637841107,-500.0,0.00021973,2]
[380290145,1755637841116,-500.16719209,0.00021973,2]
[380290147,1755637841126,-669.02,0.00021989,2]
[380290150,1755637841136,-685.09,0.00021989,2]
[380290152,1755637841146,-480.0,0.00021989,2]
[380290153,1755637841155,-580.58,0.0002199,2]
[380290156,1755637841165,-12685.85563623,0.00022,7]
[380290158,1755637841175,-14848.72,0.00022,7]
[380290160,1755637841184,-6552.39,0.00022,7]
[380290162,1755637841194,-1968.03,0.00022,7]
[380290164,1755637841203,-32559.44,0.00022,2]
[380290166,1755637841213,-528.6845513,0.00022,7]
[380290168,1755637841222,-417.15472785,0.00022,7]
[380290181,1755637841330,-160.0,0.00022,7]
[380290183,1755637841354,-375.88899365,0.00022,7]
[380290185,1755637841364,-215.79176414,0.00022,7]
[380290187,1755637841373,-179.0,0.00022,2]
[380290189,1755637841382,-2870.47428233,0.00022118,2]
[380290191,1755637841392,-151.0,0.000222,5]
[380290193,1755637841401,-176.69951069,0.000222,69]
[380290195,1755637841410,-669.02,0.00022263,2]
[380290197,1755637841419,-685.09,0.00022263,2]
[380290199,1755637841429,-521.88735864,0.00022263,2]
[380290201,1755637841438,-580.58,0.00022264,2]
[380290203,1755637841447,-4467.72044171,0.00022376,2]
[380290205,1755637841456,-460.0,0.00022444,2]
[380290207,1755637841466,-1000.0,0.00022521,2]
[380290209,1755637841475,-1000.0,0.00022521,2]
[380290211,1755637841485,-266.90847773,0.00022521,2]
[380290213,1755637841494,-501.93147384,0.00022521,2]
[380290215,1755637841503,-1000.0,0.00022521,2]
[380290217,1755637841513,-669.02,0.00022537,2]
[380290219,1755637841522,-685.09,0.00022537,2]
[380290221,1755637841531,-580.58,0.00022538,2]
[380290223,1755637841541,-154.248594,0.0002254,2]
[380290225,1755637841550,-5164.16507885,0.00022618,2]
[380290227,1755637841560,-151.0,0.00022642,2]
[380290230,1755637841569,-17842.522448,0.00022642,2]
[380290232,1755637841579,-151.0,0.00022642,2]
[380290233,1755637841589,-265.61602389,0.00022642,2]
[380290235,1755637841598,-151.0,0.00022642,2]
[380290237,1755637841608,-2264.10087163,0.00022642,2]
[380290239,1755637841618,-151.0,0.00022642,2]
[380290241,1755637841627,-151.0,0.00022642,2]
[380290243,1755637841637,-151.0,0.00022642,2]
[380290245,1755637841647,-151.0,0.00022642,2]
[380290247,1755637841657,-151.0,0.00022642,2]
[380290249,1755637841676,-151.0,0.00022642,2]
[380290251,1755637841686,-151.0,0.00022642,2]
[380290253,1755637841697,-1000.0,0.00022642,2]
[380290255,1755637841706,-151.0,0.00022642,2]
[380290257,1755637841715,-199.00176164,0.00022642,2]
[380290259,1755637841724,-226.22943837,0.00022642,2]
[380290261,1755637841737,-1977.01568987,0.00022651,2]
[380290263,1755637841747,-4467.72044171,0.00022789,2]
[380290265,1755637841756,-500.0,0.000228,2]
[380290267,1755637841766,-500.0,0.000228,2]
[380290269,1755637841776,-500.0,0.000228,2]
[380290271,1755637841785,-500.0,0.000228,2]
[380290273,1755637841797,-181.301359,0.000228,2]
[380290275,1755637841807,-151.0,0.000228,6]
[380290277,1755637841822,-669.02,0.00022811,2]
[380290279,1755637841832,-685.09,0.00022811,2]
[380290281,1755637841842,-580.58,0.00022812,2]
[380290283,1755637841852,-168.0,0.00022957,2]
[380290285,1755637841862,-560.0,0.00022992,2]
[380290287,1755637841871,-168.0,0.00022995,2]
[380290289,1755637841880,-160.0,0.00023,2]
[380290291,1755637841891,-179.0,0.00023014,7]
[380290293,1755637841900,-168.0,0.00023025,2]
[380290295,1755637841909,-168.0,0.00023055,2]
[380290297,1755637841919,-1500.0,0.00023068,2]
[380290299,1755637841928,-1094.43579841,0.00023068,2]
[380290301,1755637841937,-1000.0,0.00023068,2]
[380290303,1755637841946,-967.0,0.00023069,2]
[380290305,1755637841955,-669.02,0.00023085,2]
[380290307,1755637841965,-685.09,0.00023085,2]
[380290309,1755637841974,-580.58,0.00023086,2]
[380290311,1755637841983,-587.0,0.00023111,2]
[380290313,1755637841992,-4467.72044171,0.00023201,2]
[380290315,1755637842002,-168.0,0.00023213,2]
[380290317,1755637842011,-168.0,0.00023277,2]
[380290319,1755637842021,-12500.0,0.00023287,7]
[380290321,1755637842030,-12657.86758977,0.000233,7]
[380290323,1755637842039,-417.15472785,0.000233,7]
[380290325,1755637842049,-160.0,0.000233,7]
[380290327,1755637842058,-375.88899365,0.000233,7]
[380290329,1755637842067,-215.79176414,0.000233,7]
[380290331,1755637842076,-1000.0,0.00023348,2]
[380290333,1755637842086,-1000.0,0.00023348,2]
[380290335,1755637842095,-669.02,0.00023359,2]
[380290337,1755637842104,-685.09,0.00023359,2]
[380290339,1755637842113,-580.58,0.0002336,2]
[380290341,1755637842122,-151.0,0.000234,9]
[380290343,1755637842131,-6552.39,0.000234,7]
[380290345,1755637842141,-1968.03,0.000234,7]
[380290347,1755637842150,-187.221517,0.00023437,2]
[380290349,1755637842159,-2870.47428233,0.00023459,2]
[380290351,1755637842168,-14848.72,0.000235,7]
[380290353,1755637842178,-32559.44,0.000235,2]
[380290355,1755637842187,-660.0,0.0002354,2]
[380290357,1755637842196,-4467.72044171,0.00023614,2]
[380290359,1755637842206,-2000.0,0.00023616,2]
[380290361,1755637842215,-669.02,0.00023633,2]
[380290363,1755637842224,-685.09,0.00023633,2]
[380290365,1755637842233,-580.58,0.00023634,2]
[380290367,1755637842243,-438.0,0.00023639,2]
[380290369,1755637842252,-438.0,0.00023688,2]
[380290371,1755637842261,-151.0,0.000237,7]
[380290373,1755637842271,-168.0,0.00023714,2]
[380290375,1755637842280,-1977.01568987,0.00023728,2]
[380290377,1755637842289,-160.92920943,0.0002374,2]
[380290379,1755637842298,-160.92920943,0.00023749,2]
[380290381,1755637842307,-168.0,0.0002378,2]
[380290383,1755637842316,-1609.29209431,0.00023788,2]
[380290385,1755637842325,-1609.29209431,0.00023797,2]
[380290387,1755637842334,-1300.0,0.00023825,2]
[380290389,1755637842343,-1500.0,0.00023896,2]
[380290390,1755637842352,-151.0,0.000239,5]
[380290392,1755637842361,-669.02,0.00023907,2]
[380290394,1755637842370,-685.09,0.00023907,2]
[380290396,1755637842379,-580.58,0.00023908,2]
[380290398,1755637842388,-160.0,0.00024,7]
[380290400,1755637842397,-843.93972674,0.00024,7]
[380290402,1755637842406,-216.8835046,0.00024,7]
[380290404,1755637842415,-160.0,0.00024,7]
[380290406,1755637842424,-232.21311493,0.00024,7]
[380290408,1755637842433,-13015.73206453,0.00024011,2]
[380290410,1755637842442,-438.0,0.00024012,2]
[380290412,1755637842452,-4467.72044171,0.00024027,2]
[380290414,1755637842460,-154.248594,0.0002406,2]
[380290416,1755637842469,-972.0,0.00024073,2]
[380290418,1755637842478,-2153.0,0.00024073,2]
[380290420,1755637842487,-637.0,0.00024073,2]
[380290422,1755637842496,-760.0,0.00024088,2]
[380290424,1755637842506,-864.0,0.00024098,20]
[380290426,1755637842515,-432.1534747,0.00024137,2]
[380290428,1755637842524,-432.1534747,0.00024137,2]
[380290430,1755637842533,-432.1534747,0.00024137,2]
[380290432,1755637842543,-439.8620184,0.00024152,2]
[380290434,1755637842552,-830.45121552,0.00024164,2]
[380290436,1755637842561,-168.0,0.0002417,2]
[380290438,1755637842570,-669.02,0.00024181,2]
[380290440,1755637842579,-685.09,0.00024181,2]
[380290442,1755637842589,-580.58,0.00024182,2]
[380290444,1755637842598,-213.63565931,0.00024254,2]
[380290446,1755637842607,-151.0,0.000243,10]
[380290448,1755637842616,-645.26,0.00024315,7]
[380290450,1755637842625,-438.0,0.00024335,2]
[380290452,1755637842634,-151.0,0.000244,5]
[380290454,1755637842643,-151.0,0.000244,8]
[380290456,1755637842652,-645.26,0.00024415,7]
[380290458,1755637842662,-4467.72044171,0.00024439,2]
[380290460,1755637842672,-2000.0,0.00024444,2]
[380290462,1755637842681,-669.02,0.00024455,2]
[380290464,1755637842690,-685.09,0.00024455,2]
[380290466,1755637842700,-580.58,0.00024456,2]
[380290468,1755637842709,-438.0,0.00024489,2]
[380290470,1755637842718,-645.26,0.00024515,7]
[380290472,1755637842727,-153.0,0.00024548,2]
[380290474,1755637842736,-153.0,0.00024548,2]
[380290476,1755637842747,-153.0,0.00024548,2]
[380290478,1755637842756,-153.0,0.00024548,2]
[380290480,1755637842765,-580.8939941,0.00024548,2]
[380290482,1755637842775,-153.0,0.00024548,2]
[380290484,1755637842784,-580.8939941,0.00024548,2]
[380290486,1755637842795,-293.8943201,0.00024548,2]
[380290488,1755637842805,-153.0,0.00024548,2]
[380290490,1755637842818,-580.8939941,0.00024548,2]
[380290492,1755637842828,-293.8943201,0.00024548,2]
[380290494,1755637842838,-153.0,0.00024575,2]
[380290496,1755637842848,-198.0605393,0.00024575,2]
[380290498,1755637842859,-153.0,0.00024575,2]
[380290500,1755637842869,-153.0,0.00024575,2]
[380290502,1755637842879,-645.26,0.00024615,7]
[380290504,1755637842889,-860.0,0.00024636,2]
[380290506,1755637842899,-315.28405783,0.0002465,2]
[380290508,1755637842909,-1259.87509508,0.0002465,2]
[380290510,1755637842918,-151.0,0.00024665,20]
[380290512,1755637842927,-151.0,0.00024665,20]
[380290514,1755637842936,-151.0,0.00024665,20]
[380290516,1755637842945,-151.0,0.00024665,20]
[380290518,1755637842954,-151.0,0.00024665,20]
[380290520,1755637842963,-151.0,0.00024665,20]
[380290522,1755637842972,-151.0,0.00024665,20]
[380290524,1755637842981,-151.0,0.00024665,20]
[380290526,1755637842990,-151.0,0.00024665,20]
[380290528,1755637842998,-158.7577131,0.00024665,20]
[380290530,1755637843008,-151.0,0.00024665,20]
[380290532,1755637843017,-151.0,0.00024665,20]
[380290534,1755637843025,-245.0,0.00024665,20]
[380290536,1755637843034,-151.55192868,0.00024665,20]
[380290538,1755637843046,-151.0,0.00024665,20]
[380290540,1755637843055,-151.0,0.00024665,20]
[380290543,1755637843064,-228.91242582,0.00024665,20]
[380290545,1755637843074,-151.0,0.00024665,20]
[380290547,1755637843083,-151.0,0.00024665,20]
[380290549,1755637843092,-151.0,0.00024665,20]
[380290551,1755637843101,-151.0,0.00024665,20]
[380290554,1755637843111,-151.0,0.00024665,20]
[380290555,1755637843120,-151.0,0.00024665,20]
[380290559,1755637843130,-916.0,0.00024665,20]
[380290560,1755637843140,-151.0,0.00024665,20]
[380290563,1755637843149,-151.0,0.00024665,20]
[380290564,1755637843159,-151.0,0.00024665,20]
[380290566,1755637843168,-151.0,0.00024665,20]
[380290568,1755637843178,-151.0,0.00024665,20]
[380290570,1755637843187,-152.21211499,0.00024665,20]
[380290572,1755637843196,-151.0,0.00024665,14]
[380290574,1755637843205,-151.0,0.00024665,20]
[380290576,1755637843215,-151.0,0.00024665,20]
[380290578,1755637843225,-151.0,0.00024665,2]
[380290580,1755637843234,-151.0,0.00024665,2]
[380290582,1755637843243,-151.0,0.00024665,20]
[380290584,1755637843253,-151.0,0.00024665,20]
[380290586,1755637843262,-151.0,0.00024665,20]
[380290588,1755637843272,-500.0,0.00024665,2]
[380290590,1755637843280,-438.0,0.00024694,2]
[380290592,1755637843291,-6552.39,0.000247,7]
[380290594,1755637843300,-1968.03,0.000247,7]
[380290596,1755637843309,-160.0,0.000247,7]
[380290598,1755637843318,-216.8835046,0.000247,7]
[380290600,1755637843327,-417.15472785,0.000247,7]
[380290602,1755637843337,-232.21311493,0.000247,7]
[380290604,1755637843346,-375.88899365,0.000247,7]
[380290606,1755637843355,-215.79176414,0.000247,7]
[380290608,1755637843364,-151.0,0.000247,7]
[380290610,1755637843373,-645.26,0.00024715,7]
[380290612,1755637843383,-669.02,0.00024729,2]
[380290614,1755637843392,-151.0,0.00024729,7]
[380290616,1755637843401,-151.0,0.00024729,7]
[380290618,1755637843409,-151.0,0.00024729,7]
[380290620,1755637843418,-685.09,0.00024729,2]
[380290622,1755637843427,-151.0,0.00024729,7]
[380290624,1755637843436,-580.58,0.0002473,2]
[380290626,1755637843445,-2799.90566291,0.000248,2]
[380290628,1755637843454,-14848.72,0.000248,7]
[380290630,1755637843463,-74246.54834445,0.000248,2]
[380290632,1755637843472,-32559.44,0.000248,2]
[380290634,1755637843482,-238.885278,0.000248,7]
[380290636,1755637843490,-151.0,0.000248,7]
[380290638,1755637843500,-236.598099,0.000248,7]
[380290640,1755637843509,-151.0,0.000248,7]
[380290642,1755637843518,-151.0,0.000248,7]
[380290644,1755637843527,-182.24416,0.000248,7]
[380290646,1755637843536,-151.0,0.000248,7]
[380290648,1755637843546,-151.0,0.000248,7]
[380290650,1755637843555,-151.0,0.000248,7]
[380290652,1755637843564,-151.0,0.000248,7]
[380290654,1755637843573,-151.0,0.000248,7]
[380290656,1755637843581,-151.0,0.000248,7]
[380290658,1755637843590,-2870.47428233,0.000248,2]
[380290660,1755637843599,-151.0,0.000248,7]
[380290662,1755637843608,-151.0,0.000248,7]
[380290664,1755637843617,-170.397068,0.000248,7]
[380290666,1755637843626,-170.397068,0.000248,7]
[380290667,1755637843635,-170.397068,0.000248,7]
[380290670,1755637843644,-170.397068,0.000248,7]
[380290672,1755637843653,-151.0,0.000248,7]
[380290673,1755637843662,-151.0,0.000248,7]
[380290676,1755637843672,-151.713914,0.000248,7]
[380290677,1755637843681,-153.9889,0.000248,7]
[380290679,1755637843690,-182389.836184,0.000248,2]
[380290681,1755637843699,-151.0,0.000248,7]
[380290683,1755637843708,-251.779122,0.000248,7]
[380290685,1755637843718,-151.0,0.000248,7]
[380290687,1755637843727,-151.0,0.000248,7]
[380290690,1755637843736,-151.0,0.000248,7]
[380290691,1755637843747,-151.0,0.000248,7]
[380290694,1755637843757,-253.942681,0.000248,7]
[380290695,1755637843766,-152.45789,0.000248,7]
[380290697,1755637843775,-1977.01568987,0.00024805,2]
[380290699,1755637843785,-7130.98892477,0.00024813,2]
[380290701,1755637843795,-645.292,0.00024815,7]
[380290703,1755637843804,-4467.72044171,0.00024852,2]
[380290705,1755637843816,-423.52968532,0.00024873,2]
[380290707,1755637843826,-500.0,0.00024873,2]
[380290709,1755637843835,-500.0,0.00024873,2]
[380290711,1755637843845,-506.59474053,0.00024873,2]
[380290713,1755637843855,-150.0,0.00024873,2]
[380290715,1755637843864,-150.0,0.00024873,2]
[380290718,1755637843874,-5679.67351454,0.000249,2]
[380290720,1755637843883,-151.0,0.000249,7]
[380290722,1755637843894,-151.0,0.000249,7]
[380290724,1755637843903,-153.0,0.000249,3]
[380290726,1755637843912,-153.0,0.000249,3]
[380290728,1755637843922,-153.0,0.000249,3]
[380290730,1755637843931,-153.0,0.000249,3]
[380290733,1755637843940,-153.0,0.000249,3]
[380290736,1755637843956,-153.0,0.000249,3]
[380290739,1755637843970,-156.41520344,0.000249,3]
[380290741,1755637843979,-208.617058,0.000249,7]
[380290744,1755637843989,-151.0,0.000249,7]
[380290746,1755637843998,-151.0,0.000249,7]
[380290748,1755637844007,-152.373275,0.000249,7]
[380290750,1755637844015,-151.0,0.000249,7]
[380290752,1755637844024,-170.397068,0.000249,7]
[380290754,1755637844033,-170.397068,0.000249,7]
[380290758,1755637844043,-170.397068,0.000249,7]
[380290761,1755637844052,-170.397068,0.000249,7]
[380290762,1755637844061,-151.0,0.000249,7]
[380290765,1755637844070,-581832.43749448,0.000249,2]
[380290781,1755637844149,-6295.9550953,0.000249,2]
[380290784,1755637844162,-7724.9419918,0.000249,2]
[380290786,1755637844173,-505.75395028,0.000249,2]
[380292033,1755638123202,300.0,0.00028,120]
[380292034,1755638158158,29999.99,0.00027115,61]
[380292035,1755638191079,279.3332,0.00013699,2]
[380292037,1755638646156,412.429583,0.00018496,2]
[380292038,1755638749134,-184.18210763,0.00019253,2]
[380292039,1755638749157,-189.52552289,0.00019322,2]
[380292040,1755638749179,-939.10358775,0.00019422,2]
[380292041,1755638749202,-1200.0,0.0001947,2]
[380292042,1755638749230,-11999.54515174,0.00019471,2]
[380292043,1755638749251,-480.0,0.00019471,2]
[380292044,1755638749274,-480.0,0.00019471,2]
[380292045,1755638749298,-480.0,0.00019471,2]
[380292046,1755638749320,-480.0,0.00019471,2]
[380292047,1755638749340,-480.0,0.00019471,2]
[380292048,1755638749360,-480.0,0.00019471,2]
[380292049,1755638749381,-548.90583723,0.00019471,2]
[380292050,1755638749401,-480.0,0.00019471,2]
[380292051,1755638749555,-528.62,0.00019471,2]
[380292052,1755638749578,-480.0,0.00019471,2]
[380292053,1755638749598,-480.0,0.00019471,2]
[380292054,1755638749619,-480.0,0.00019471,2]
[380292055,1755638749639,-480.0,0.00019471,2]
[380292056,1755638749661,-480.0,0.00019471,2]
[380292057,1755638749682,-480.0,0.00019471,2]
[380292058,1755638749702,-400.0,0.00019471,2]
[380292059,1755638749723,-480.0,0.00019471,2]
[380292060,1755638749746,-480.0,0.00019471,2]
[380292061,1755638749767,-480.0,0.00019471,2]
[380292062,1755638749787,-480.0,0.00019471,2]
[380292063,1755638749807,-480.0,0.00019471,2]
[380292064,1755638749828,-480.0,0.00019471,2]
[380292065,1755638749850,-480.0,0.00019521,2]
[380292066,1755638749872,-480.0,0.00019521,2]
[380292067,1755638749894,-480.0,0.00019521,2]
[380292068,1755638749918,-480.0,0.00019521,2]
[380292069,1755638749938,-480.0,0.00019521,2]
[380292070,1755638749958,-480.0,0.00019521,2]
[380292071,1755638749978,-480.0,0.00019521,2]
[380292072,1755638749998,-480.0,0.00019521,2]
[380292073,1755638750018,-480.0,0.00019521,2]
[380292074,1755638750038,-480.0,0.00019521,2]
[380292075,1755638750060,-480.0,0.00019521,2]
[380292076,1755638750080,-480.0,0.00019521,2]
[380292077,1755638750102,-480.0,0.00019521,2]
[380292078,1755638750122,-480.0,0.00019521,2]
[380292079,1755638750152,-480.0,0.00019522,2]
[380292080,1755638750186,-480.0,0.00019522,2]
[380292081,1755638750211,-480.0,0.00019522,2]
[380292082,1755638750233,-480.0,0.00019522,2]
[380292083,1755638750259,-480.0,0.00019522,2]
[380292084,1755638750282,-480.0,0.00019522,2]
[380292085,1755638750304,-425.80773449,0.00019522,2]
[380292086,1755638750326,-480.0,0.00019522,2]
[380292087,1755638750347,-480.0,0.00019522,2]
[380292088,1755638750368,-480.0,0.00019522,2]
[380292089,1755638750390,-480.0,0.00019522,2]
[380292090,1755638750414,-480.0,0.00019522,2]
[380292091,1755638750436,-480.0,0.00019522,2]
[380292092,1755638750457,-480.0,0.00019522,2]
[380292093,1755638750480,-480.0,0.00019522,2]
[380292094,1755638750502,-480.0,0.00019522,2]
[380292095,1755638750523,-480.0,0.00019522,2]
[380292096,1755638750543,-480.0,0.00019522,2]
[380292097,1755638750564,-480.0,0.00019522,2]
[380292098,1755638750586,-480.0,0.00019522,2]
[380292099,1755638750608,-480.0,0.00019522,2]
[380292100,1755638750629,-480.0,0.00019522,2]
[380292101,1755638750649,-480.0,0.00019522,2]
[380292102,1755638750674,-480.0,0.00019522,2]
[380292103,1755638750695,-480.0,0.00019522,2]
[380292104,1755638750717,-480.0,0.00019522,2]
[380292105,1755638750738,-480.0,0.00019522,2]
[380292106,1755638750760,-480.0,0.00019522,2]
[380292107,1755638750781,-480.0,0.00019522,2]
[380292108,1755638750802,-480.0,0.00019523,2]
[380292109,1755638750823,-480.0,0.00019523,2]
[380292110,1755638750845,-480.0,0.00019523,2]
[380292111,1755638750867,-480.0,0.00019523,2]
[380292112,1755638750888,-480.0,0.00019523,2]
[380292113,1755638750920,-480.0,0.00019523,2]
[380292114,1755638750941,-1000.0,0.00019525,2]
[380292115,1755638750963,-1000.0,0.00019525,2]
[380292116,1755638750984,-1000.0,0.00019525,2]
[380292117,1755638751009,-480.0,0.00019745,2]
[380292118,1755638751031,-480.0,0.00019745,2]
[380292119,1755638751053,-480.0,0.00019795,2]
[380292120,1755638751076,-480.0,0.00019795,2]
[380292121,1755638751098,-372.8,0.00019795,2]
[380292122,1755638751119,-282.55,0.00019795,2]
[380292123,1755638751141,-480.0,0.00019795,2]
[380292124,1755638751164,-480.0,0.00019795,2]
[380292125,1755638751191,-289.12,0.00019796,2]
[380292126,1755638751222,-455.01,0.00019796,2]
[380292127,1755638751250,-476.00862356,0.00019796,2]
[380292128,1755638751276,-480.0,0.00019796,2]
[380292129,1755638751303,-480.0,0.00019796,2]
[380292130,1755638751329,-231.35298868,0.00019797,2]
[380292131,1755638751353,-480.0,0.00019797,2]
[380292132,1755638751382,-2917.9541096,0.000199,2]
[380292133,1755638751413,-300.0,0.00019907,20]
[380292134,1755638751443,-300.0,0.00019907,20]
[380292135,1755638751473,-300.0,0.00019907,20]
[380292136,1755638751503,-300.0,0.00019907,20]
[380292137,1755638751533,-300.0,0.00019907,20]
[380292138,1755638751560,-300.0,0.00019907,20]
[380292139,1755638751591,-300.0,0.00019907,20]
[380292140,1755638751618,-300.0,0.00019907,20]
[380292141,1755638751645,-300.0,0.00019907,20]
[380292142,1755638751674,-300.0,0.00019907,20]
[380292143,1755638751702,-300.0,0.00019907,20]
[380292144,1755638751729,-300.0,0.00019907,20]
[380292145,1755638751755,-300.0,0.00019907,20]
[380292146,1755638751780,-300.0,0.00019907,20]
[380292147,1755638751807,-300.0,0.00019907,20]
[380292148,1755638751830,-269.95031563,0.00019975,2]
[380292149,1755638751855,-500.0,0.00019977,2]
[380292150,1755638751881,-480.0,0.00020019,2]
[380292151,1755638751905,-480.0,0.00020019,2]
[380292152,1755638751933,-480.0,0.00020069,2]
[380292153,1755638751960,-412.93,0.00020069,2]
[380292154,1755638751987,-500.0,0.00020069,2]
[380292155,1755638752012,-500.0,0.00020069,2]
[380292156,1755638752036,-500.0,0.00020069,2]
[380292157,1755638752060,-304.89640373,0.00020069,2]
[380292158,1755638752083,-500.0,0.00020069,2]
[380292159,1755638752109,-454.03068236,0.00020069,2]
[380292160,1755638752134,-213.54417634,0.00020069,2]
[380292161,1755638752160,-480.0,0.00020069,2]
[380292162,1755638752183,-158.9,0.00020069,2]
[380292163,1755638752207,-198.3,0.0002007,2]
[380292164,1755638752233,-480.0,0.0002007,2]
[380292165,1755638752258,-200.5,0.00020071,2]
[380292166,1755638752280,-279.3332,0.00020187,2]
[380292167,1755638752305,-480.0,0.00020293,2]
[380292168,1755638752330,-480.0,0.00020293,2]
[380292169,1755638752358,-600.0,0.00020304,20]
[380292170,1755638752382,-2917.95410957,0.00020313,2]
[380292171,1755638752408,-383.15,0.00020343,2]
[380292172,1755638752432,-480.0,0.00020343,2]
[380292173,1755638752458,-480.0,0.00020344,2]
[380292174,1755638752481,-939.10358771,0.00020496,2]